bitfinex/quotes_ETHUSD_20251024
["timestamp","ask_amount","ask_price","bid_price","bid_amount"]
[1761337109954,1e-08,3936.6,3936.5,13.71467514]
[1761337111359,1e-08,3936.6,3936.5,12.80331662]
[1761337112120,1e-08,3936.6,3936.5,13.23981662]
[1761337114625,1e-08,3936.6,3936.5,12.80331662]
[1761337115152,1e-08,3936.6,3936.5,13.23981662]
[1761337118323,1e-08,3936.6,3936.5,14.6068544]
[1761337118527,1e-08,3936.6,3936.5,14.6190544]
[1761337119361,1e-08,3936.6,3936.5,14.1703544]
[1761337120459,1e-08,3936.6,3936.5,14.0431544]
[1761337120648,1e-08,3936.6,3936.5,14.1703544]
[1761337120851,1e-08,3936.6,3936.5,14.6190544]
[1761337121862,1e-08,3936.6,3936.5,14.1703544]
[1761337123736,1e-08,3936.6,3936.5,14.6190544]
[1761337124031,1e-08,3936.6,3936.5,14.1703544]
[1761337124251,1e-08,3936.6,3936.5,12.80331662]
[1761337124933,1e-08,3936.6,3936.5,13.25201662]
[1761337126567,1e-08,3936.6,3936.5,12.80331662]
[1761337131082,0.44540001,3936.6,3936.5,7.76194472]
[1761337131253,0.44540001,3936.6,3936.5,8.35932964]
[1761337131577,0.44540001,3936.6,3936.5,5.8895277]
[1761337131863,0.44540001,3936.6,3936.5,6.80413301]
[1761337132531,0.44540001,3936.6,3936.5,5.8895277]
[1761337133231,0.44540001,3936.6,3936.5,5.8915277]
[1761337141591,1e-08,3936.6,3936.5,5.8915277]
[1761337145906,1e-08,3936.6,3936.5,11.33008457]
[1761337146299,1e-08,3936.6,3936.5,12.70211972]
[1761337146927,1e-08,3936.6,3936.5,13.20899972]
[1761337147076,1e-08,3936.6,3936.5,13.67769972]
[1761337148104,1e-08,3936.6,3936.5,12.30566457]
[1761337152597,1e-08,3936.6,3936.5,12.4073809]
[1761337155124,1e-08,3936.6,3936.5,13.9625809]
[1761337156945,1e-08,3936.6,3936.5,13.4938809]
[1761337165355,1e-08,3936.6,3936.5,13.39216457]
[1761337165533,0.45470001,3936.6,3936.5,13.39216457]
[1761337166166,0.45470001,3936.6,3936.5,7.9536077]
[1761337166167,1e-08,3936.6,3936.5,7.9536077]
[1761337166470,0.45470001,3936.6,3936.5,8.81677581]
[1761337166971,0.45470001,3936.6,3936.5,8.91850249]
[1761337169044,0.45470001,3936.6,3936.5,8.81677581]
[1761337171367,0.45470001,3936.6,3936.5,7.4467277]
[1761337172566,1e-08,3936.6,3936.5,9.64255581]
[1761337172870,1e-08,3936.6,3936.5,8.72720771]
[1761337173064,1e-08,3936.6,3936.5,5.05910771]
[1761337173240,1e-08,3936.6,3936.5,8.27410771]
[1761337177449,1e-08,3936.6,3936.5,8.73960771]
[1761337178795,1e-08,3936.6,3936.5,8.27410771]
[1761337182674,1e-08,3936.6,3936.5,8.40130771]
[1761337184978,1e-08,3936.6,3936.5,8.86680771]
[1761337185976,1e-08,3936.6,3936.5,10.67164868]
[1761337187385,1e-08,3936.6,3936.5,8.86680771]
[1761337189388,1e-08,3936.6,3936.5,8.40130771]
[1761337192095,1e-08,3936.6,3936.5,10.67164868]
[1761337192696,1e-08,3936.6,3936.5,15.2014389]
[1761337193790,0.001,3936.9,3936.8,3.04701411]
[1761337193982,0.001,3936.9,3936.8,12.34600433]
[1761337194179,0.001,3936.9,3936.8,12.93870433]
[1761337194376,0.001,3936.9,3936.8,12.57491213]
[1761337198707,0.001,3936.9,3936.8,17.10470235]
[1761337198884,0.001,3936.9,3936.8,17.57790235]
[1761337199598,0.001,3936.9,3936.8,21.41790235]
[1761337204418,0.001,3936.9,3936.8,20.94470235]
[1761337207012,0.001,3936.9,3936.8,16.41491213]
[1761337208029,0.001,3936.9,3936.8,20.94470235]
[1761337208234,1e-08,3937.4,3936.9,2.06208]
[1761337208431,1e-08,3937.4,3936.8,20.94470235]
[1761337208432,1e-08,3937.4,3937.3,9.13168176]
[1761337208742,1e-08,3937.4,3937.3,12.34368176]
[1761337209422,1e-08,3937.4,3937.3,16.63768176]
[1761337214630,1e-08,3937.4,3937.3,17.10818176]
[1761337214812,0.6882,3938.1,3937.9,3.04630456]
[1761337215012,0.6882,3938.1,3937.9,12.34329478]
[1761337215221,0.2342,3938.1,3937.9,13.70929582]
[1761337215426,0.455,3938.4,3937.9,14.39749582]
[1761337215643,0.454,3938.3,3937.9,14.39749582]
[1761337215839,0.001,3938.2,3937.9,14.39749582]
[1761337216073,0.001,3938.2,3937.9,13.03149478]
[1761337216288,0.455,3938.2,3937.9,13.03149478]
[1761337216488,0.455,3938.0,3937.9,3.22251273]
[1761337217080,0.455,3938.0,3937.9,2.53942456]
[1761337217486,0.455,3938.0,3937.9,7.06921478]
[1761337218063,0.455,3938.0,3937.9,2.53942456]
[1761337218277,0.455,3938.0,3937.9,2.66662456]
[1761337218609,0.455,3938.0,3937.9,3.34977282]
[1761337219088,0.455,3938.0,3937.9,2.66662456]
[1761337220290,0.455,3938.0,3937.9,3.34990767]
[1761337220601,0.455,3938.0,3937.9,2.66662456]
[1761337221902,0.455,3938.0,3937.9,2.66662456]
[1761337225283,0.455,3938.0,3937.9,3.57729043]
[1761337226604,0.001,3938.0,3937.9,5.13249043]
[1761337226803,0.001,3938.0,3937.9,5.58744366]
[1761337227012,0.455,3938.0,3937.9,5.58744366]
[1761337228531,0.455,3938.0,3937.9,4.22182456]
[1761337234111,0.455,3938.0,3937.9,5.58744366]
[1761337235421,0.001,3938.0,3937.9,4.72870456]
[1761337235927,0.001,3938.0,3937.9,4.7540988]
[1761337236222,0.001,3938.0,3937.9,4.72870456]
[1761337240419,0.001,3938.0,3937.9,4.98300456]
[1761337240620,0.001,3938.0,3937.9,4.72870456]
[1761337242030,0.001,3938.0,3937.9,5.16980456]
[1761337243827,0.001,3938.0,3937.9,4.72870456]
[1761337244147,0.001,3938.0,3937.9,5.16980456]
[1761337244322,0.001,3938.0,3937.9,4.72870456]
[1761337245248,0.001,3938.2,3938.1,2.53929559]
[1761337245448,0.001,3938.2,3938.1,12.34116581]
[1761337245652,0.001,3938.2,3938.1,7.91304332]
[1761337246627,0.001,3938.2,3938.1,7.81137559]
[1761337249028,0.4616,3938.2,3938.1,12.34116581]
[1761337249838,0.001,3938.2,3938.1,12.34116581]
[1761337251358,0.4616,3938.2,3938.1,12.34116581]
[1761337252858,0.4616,3938.2,3938.1,13.24389857]
[1761337255028,0.4616,3938.2,3938.1,7.30449559]
[1761337255356,0.4616,3938.2,3938.1,7.43169559]
[1761337256123,0.4616,3938.2,3938.1,7.24331296]
[1761337256329,0.4616,3938.2,3938.1,5.87649559]
[1761337262088,0.4616,3938.2,3938.1,7.24331296]
[1761337262583,0.4616,3938.2,3938.1,5.87649559]
[1761337263274,0.4616,3938.2,3938.1,7.24331296]
[1761337268693,0.4616,3938.2,3938.1,4.03331296]
[1761337268999,0.4516,3938.2,3938.1,5.87549559]
[1761337270889,0.4516,3938.2,3938.0,0.002]
[1761337271759,0.4516,3938.2,3938.1,2.53929559]
[1761337275066,0.4516,3938.2,3938.0,2.54133503]
[1761337275293,0.4516,3938.2,3938.1,2.53929559]
[1761337276811,0.4516,3938.2,3938.0,0.002]
[1761337279709,0.4516,3938.2,3938.0,2.54131193]
[1761337281212,0.4516,3938.2,3938.0,0.002]
[1761337281614,0.4516,3938.2,3938.0,2.5413462]
[1761337282189,0.4516,3938.2,3938.1,2.53929559]
[1761337282406,0.5788,3938.2,3938.1,2.53929559]
[1761337285298,0.5788,3938.2,3938.0,2.54133521]
[1761337285482,0.4506,3938.1,3938.0,2.54133521]
[1761337287423,0.9012,3938.1,3938.0,2.54133521]
[1761337291059,0.4506,3938.1,3938.0,2.66853521]
[1761337292027,0.4506,3938.1,3938.0,2.66856008]
[1761337293416,0.4506,3938.1,3938.0,0.1292]
[1761337293712,0.4506,3938.1,3938.0,0.002]
[1761337294039,0.9012,3938.1,3938.0,0.002]
[1761337294443,0.9012,3938.1,3938.0,2.54136008]
[1761337298039,0.4506,3938.1,3938.0,2.54136008]
[1761337298240,0.1282,3938.2,3938.1,2.53929559]
[1761337298241,0.001,3938.2,3938.1,2.53929559]
[1761337298446,0.4516,3938.2,3938.0,2.54135868]
[1761337298854,0.4335,3938.1,3938.0,2.54135868]
[1761337299734,0.4516,3938.2,3938.1,2.53929559]
[1761337300359,0.8851,3938.2,3938.1,2.53929559]
[1761337301932,0.4345,3938.2,3938.1,2.53929559]
[1761337302575,0.001,3938.2,3938.1,2.53929559]
[1761337302858,0.001,3938.2,3938.1,9.12340295]
[1761337303756,0.001,3938.2,3938.1,10.03384239]
[1761337303957,0.001,3938.2,3938.1,9.12340295]
[1761337304469,0.001,3938.2,3938.1,9.63028295]
[1761337304669,0.001,3938.2,3938.1,10.99710032]
[1761337305334,0.001,3938.2,3938.1,9.63028295]
[1761337305838,0.001,3938.2,3938.1,10.99710032]
[1761337306240,0.001,3938.2,3938.1,9.63028295]
[1761337306646,0.001,3938.2,3938.1,10.99710032]
[1761337307473,0.001,3938.2,3938.1,9.63028295]
[1761337309966,0.001,3938.2,3938.1,9.73195895]
[1761337310177,0.001,3938.2,3938.1,11.28715895]
[1761337310470,0.001,3938.2,3938.1,12.65397632]
[1761337311360,0.001,3938.2,3938.1,11.28715895]
[1761337312060,0.001,3938.2,3938.1,12.65397632]
[1761337313370,0.001,3938.2,3938.1,11.28715895]
[1761337313873,0.001,3938.2,3938.1,12.65397632]
[1761337314273,0.001,3938.2,3938.1,11.28715895]
[1761337314443,0.001,3938.2,3938.1,12.65397632]
[1761337314873,0.001,3938.2,3938.1,16.27361546]
[1761337315061,0.001,3938.8,3938.7,3.04578877]
[1761337315252,0.001,3938.8,3938.7,10.77886983]
[1761337315443,0.001,3938.8,3938.7,11.34136983]
[1761337315638,0.001,3938.8,3938.7,11.44303471]
[1761337315849,0.001,3938.8,3938.7,12.3489837]
[1761337316170,0.001,3938.8,3938.7,12.93806808]
[1761337317381,0.001,3938.8,3938.7,12.93737849]
[1761337317885,0.001,3938.8,3938.7,14.49257849]
[1761337321123,0.32716488,3940.2,3938.9,3.04565986]
[1761337321268,0.445,3940.1,3938.9,5.50548492]
[1761337321597,0.2255,3940.2,3940.1,2.53800664]
[1761337321755,0.6705,3940.2,3940.1,2.53800664]
[1761337321954,0.6705,3940.2,3940.1,2.66520664]
[1761337322985,0.445,3940.7,3940.1,0.1272]
[1761337323185,0.445,3940.6,3940.4,2.53777217]
[1761337323490,0.445,3940.6,3940.5,2.53774901]
[1761337323995,0.445,3940.6,3940.3,2.53781462]
[1761337325499,0.445,3940.6,3940.4,2.53780966]
[1761337326200,0.445,3940.6,3940.5,2.53774901]
[1761337326608,0.6994,3940.9,3940.4,4.52608106]
[1761337326814,0.6994,3940.9,3940.2,3.205]
[1761337326815,0.2168,3942.6,3942.5,2.53646163]
[1761337326972,0.2168,3942.6,3942.1,3.205]
[1761337327302,0.2168,3942.6,3941.4,0.50688]
[1761337327303,0.445,3942.5,3941.9,4.52608106]
[1761337327604,0.445,3942.5,3942.4,2.53652597]
[1761337328273,6.13456428,3944.0,3942.2,10.2696894]
[1761337328274,1.5935,3942.9,3942.3,2.53659031]
[1761337328473,1.5935,3942.9,3942.7,7.06235138]
[1761337328775,1.1453,3942.9,3942.8,2.53626864]
[1761337328976,1.3048,3942.9,3942.8,2.53626864]
[1761337329296,1.753,3942.9,3942.8,2.53626864]
[1761337329496,1.1453,3942.9,3942.8,7.0623497]
[1761337330610,1.5935,3942.9,3942.7,2.53632117]
[1761337330809,0.4482,3942.8,3942.7,2.53633296]
[1761337331315,1.1453,3942.9,3942.8,3.04314864]
[1761337331720,1.1453,3942.9,3942.8,12.7618297]
[1761337332006,1.1453,3942.9,3942.8,9.39628995]
[1761337335696,1.0953,3942.9,3942.8,9.39628995]
[1761337336677,1.0963,3942.9,3942.8,8.1893519]
[1761337336877,1.7774,3942.9,3942.8,5.74526864]
[1761337337091,1.7774,3942.9,3942.8,7.0623497]
[1761337338481,1.7774,3942.9,3942.5,3.208]
[1761337338482,1.7774,3942.9,3942.5,7.73408106]
[1761337338681,1.3292,3942.9,3942.8,7.0623497]
[1761337338895,1.0963,3942.9,3942.8,7.0623497]
[1761337339397,1.0963,3942.9,3942.8,7.82407358]
[1761337339809,1.0463,3942.9,3942.8,11.03507358]
[1761337341707,1.0463,3942.9,3942.8,7.0623497]
[1761337341908,1.4945,3942.9,3942.8,7.0623497]
[1761337342414,1.0463,3942.9,3942.8,7.0623497]
[1761337342908,1.0463,3942.9,3942.8,3.29799252]
[1761337343136,1.0463,3942.9,3942.8,7.0623497]
[1761337343277,1.6774,3942.9,3942.2,1.5552]
[1761337343475,1.6774,3942.9,3942.8,2.53626864]
[1761337346920,1.6774,3942.9,3942.8,2.66346864]
[1761337347604,1.6774,3942.9,3942.8,0.1272]
[1761337347797,1.6774,3942.9,3942.6,2.5363443]
[1761337347993,0.4482,3942.8,3942.6,2.5363443]
[1761337348197,0.4482,3942.8,3942.6,2.53639093]
[1761337348516,0.61594,3942.8,3941.5,0.67676845]
[1761337348828,0.4482,3942.8,3942.6,2.53635088]
[1761337349016,0.4482,3942.7,3942.4,2.53648452]
[1761337349211,0.4482,3942.7,3941.7,2.53695252]
[1761337349212,0.4482,3942.7,3942.2,2.53665465]
[1761337349721,0.4482,3942.7,3942.5,2.53645448]
[1761337349925,0.4482,3942.7,3942.4,2.53649078]
[1761337350130,0.4482,3942.7,3942.5,2.53645423]
[1761337350326,0.4482,3942.7,3942.4,2.53650226]
[1761337350628,0.4482,3942.7,3942.6,7.06247836]
[1761337350828,0.4482,3942.7,3942.6,2.5363973]
[1761337351323,0.4482,3942.7,3942.4,2.53648565]
[1761337351529,0.4482,3942.7,3942.3,4.52608106]
[1761337351697,0.93704,3942.7,3941.6,0.67676845]
[1761337351894,0.93704,3942.7,3942.1,2.53671522]
[1761337352121,0.4482,3942.6,3942.1,2.53671522]
[1761337352321,0.34733155,3942.5,3942.0,2.53677031]
[1761337352714,0.4482,3942.4,3941.8,2.53690689]
[1761337353029,0.2329,3941.9,3941.8,2.53690689]
[1761337353533,0.6811,3941.9,3941.8,2.53690689]
[1761337354928,1.2292,3942.9,3941.8,4.52608106]
[1761337355128,1.2292,3942.9,3942.4,4.52608106]
[1761337355301,0.4482,3942.8,3942.4,7.06260649]
[1761337355501,0.4482,3942.8,3942.7,2.53633296]
[1761337355727,0.9963,3942.9,3942.8,2.53626864]
[1761337356521,0.9963,3942.9,3942.8,3.04314864]
[1761337356713,0.9963,3942.9,3942.8,3.71991709]
[1761337356916,0.9963,3942.9,3942.8,3.04314864]
[1761337357115,0.9963,3942.9,3942.8,3.94732767]
[1761337357325,0.9963,3942.9,3942.8,3.04314864]
[1761337357612,1.6813,3942.9,3942.8,2.53626864]
[1761337357812,1.6813,3942.9,3942.8,3.34214295]
[1761337358018,1.6813,3942.9,3942.8,2.66346864]
[1761337360764,1.6813,3942.9,3942.8,3.3422176]
[1761337361664,1.6813,3942.9,3942.8,2.66346864]
[1761337362368,1.6813,3942.9,3942.7,4.65328106]
[1761337362568,1.6813,3942.9,3942.8,0.1272]
[1761337362569,0.9963,3942.9,3942.8,0.1272]
[1761337362761,0.9963,3942.9,3942.8,2.66346864]
[1761337363434,0.9963,3942.9,3942.8,3.34232261]
[1761337363870,0.9963,3942.9,3942.8,2.66346864]
[1761337366160,0.9963,3942.9,3942.8,3.56764767]
[1761337366768,0.9963,3942.9,3942.8,2.66346864]
[1761337367645,1.225,3942.9,3942.6,0.90417903]
[1761337367846,0.9963,3942.9,3942.8,7.74157786]
[1761337368046,0.9963,3942.9,3942.8,7.74157912]
[1761337369763,0.9963,3942.9,3942.8,7.0623497]
[1761337370373,1.6813,3942.9,3942.8,7.74159371]
[1761337370945,0.9963,3942.9,3942.8,7.74159371]
[1761337371470,0.9963,3942.9,3942.8,3.21551265]
[1761337371655,0.9963,3942.9,3942.8,7.74159371]
[1761337372453,0.9963,3942.9,3942.8,7.74359371]
[1761337372953,0.9963,3942.9,3942.8,7.0643497]
[1761337374465,0.9963,3942.9,3942.8,3.21766078]
[1761337374671,1.6813,3942.9,3942.8,3.21766078]
[1761337375381,0.9963,3942.9,3942.8,7.74374184]
[1761337375950,0.9963,3942.9,3942.8,7.0643497]
[1761337376162,0.9963,3942.9,3942.8,7.74378964]
[1761337376781,0.9963,3942.9,3942.8,3.21770858]
[1761337376978,0.9963,3942.9,3942.8,2.53826864]
[1761337377500,0.9963,3942.9,3942.8,3.21771957]
[1761337377652,0.9963,3942.9,3942.8,3.34491957]
[1761337378355,0.9963,3942.9,3942.8,3.56964767]
[1761337378556,0.9963,3942.9,3942.8,4.07652767]
[1761337379258,0.9963,3942.9,3942.8,3.56964767]
[1761337379458,0.9963,3942.9,3942.8,8.90579354]
[1761337380680,0.9963,3942.9,3942.8,8.8643366]
[1761337381289,0.9963,3942.9,3942.8,7.95851354]
[1761337382991,1.6832,3942.9,3942.8,3.44422763]
[1761337383364,0.9963,3942.9,3942.8,3.44422763]
[1761337383568,0.9963,3942.9,3942.8,8.46539354]
[1761337383768,0.9963,3942.9,3942.8,10.26471703]
[1761337384171,0.2248,3943.8,3943.7,2.53568983]
[1761337384600,0.6869,3943.8,3943.7,2.53568983]
[1761337388110,0.6869,3943.8,3943.6,2.5357303]
[1761337388294,0.4702,3943.7,3943.6,2.5357303]
[1761337389313,0.4702,3943.7,3943.6,2.6621303]
[1761337392915,0.4702,3943.7,3943.6,0.1264]
[1761337393112,0.62445872,3943.7,3943.5,2.53581139]
[1761337393418,0.62445872,3943.7,3943.5,2.66221139]
[1761337393588,0.4702,3943.6,3943.5,2.66221139]
[1761337394116,0.4702,3943.6,3943.3,3.21588174]
[1761337394290,0.4702,3943.6,3943.4,2.53587357]
[1761337394490,0.87314,3943.6,3943.3,2.66234119]
[1761337394816,0.87314,3943.6,3943.2,0.67993535]
[1761337395020,0.4702,3943.5,3943.3,2.53593582]
[1761337395421,0.4702,3943.5,3943.2,0.80713535]
[1761337395422,0.40294,3943.6,3943.4,2.53588274]
[1761337395616,0.4702,3943.6,3943.5,2.53581843]
[1761337396016,0.001,3943.8,3943.7,2.53568983]
[1761337396216,0.001,3943.8,3943.7,2.66208983]
[1761337397222,0.001,3943.8,3943.7,3.79762518]
[1761337397423,0.001,3943.8,3943.7,3.34202518]
[1761337397624,0.001,3943.8,3943.7,9.96673473]
[1761337397825,0.001,3943.8,3943.7,11.32660544]
[1761337398310,0.001,3943.8,3943.7,10.01801473]
[1761337398512,0.001,3943.8,3943.7,9.51113473]
[1761337399647,0.001,3943.8,3943.7,4.99568403]
[1761337399813,0.4712,3943.8,3943.7,4.99568403]
[1761337400214,0.4712,3943.8,3943.7,4.09088983]
[1761337400411,0.001,3943.8,3943.7,4.99568403]
[1761337401199,0.001,3943.8,3943.7,4.09088983]
[1761337401534,0.4712,3943.8,3943.7,4.09088983]
[1761337401832,0.001,3943.8,3943.7,4.09088983]
[1761337404840,0.001,3943.8,3943.7,9.51113473]
[1761337407610,0.001,3943.8,3943.7,9.63753473]
[1761337408245,0.001,3943.8,3943.7,5.12120988]
[1761337410316,0.001,3943.8,3943.7,4.99480988]
[1761337413267,0.001,3943.8,3943.7,4.54648983]
[1761337413677,0.001,3943.8,3943.7,5.45043342]
[1761337413832,0.001,3943.8,3943.7,4.99483342]
[1761337414671,0.001,3943.8,3943.7,4.09088983]
[1761337414867,0.2176,3943.8,3943.7,4.09088983]
[1761337415171,0.001,3943.8,3943.7,4.09088983]
[1761337415669,0.001,3943.8,3943.7,4.99483342]
[1761337415875,0.4712,3943.8,3943.7,4.09088983]
[1761337416178,0.4712,3943.8,3943.7,2.53568983]
[1761337420283,0.4712,3943.8,3943.7,2.66208983]
[1761337420986,0.001,3943.8,3943.7,2.66208983]
[1761337421156,0.4577,3943.8,3943.7,2.66208983]
[1761337424692,0.001,3943.8,3943.7,2.66208983]
[1761337426060,0.4577,3943.8,3943.7,2.66208983]
[1761337426261,0.4577,3943.8,3943.7,3.56603342]
[1761337426688,0.001,3943.8,3943.7,3.56603342]
[1761337427194,0.001,3943.8,3943.7,2.66208983]
[1761337428312,0.001,3943.8,3943.7,3.56603342]
[1761337429019,0.001,3943.8,3943.7,3.12288983]
[1761337429225,0.001,3943.8,3943.7,2.66208983]
[1761337429793,0.001,3943.8,3943.7,3.56816524]
[1761337431793,0.001,3943.8,3943.7,2.66208983]
[1761337435701,0.4577,3943.8,3943.7,3.56817043]
[1761337436109,0.4577,3943.8,3943.7,2.66208983]
[1761337440130,0.4577,3943.8,3943.7,3.3418412]
[1761337440293,0.001,3943.8,3943.7,3.3418412]
[1761337440735,0.4592,3943.8,3943.7,3.3418412]
[1761337441915,5.12828673,3943.8,3943.6,0.67975137]
[1761337442121,2.53568983,3943.7,3943.1,0.67975137]
[1761337442352,2.99388983,3943.7,3943.1,0.67975137]
[1761337442554,4.51606801,3943.2,3942.9,0.002]
[1761337442715,3.6612,3943.6,3942.9,0.002]
[1761337442716,3.209,3943.1,3942.9,0.002]
[1761337442915,3.209,3943.0,3942.9,0.002]
[1761337443321,3.6672,3943.0,3942.9,0.002]
[1761337444657,0.4582,3943.0,3942.9,0.002]
[1761337444947,0.82502,3943.0,3942.9,0.002]
[1761337450054,4.03502,3943.0,3942.9,0.002]
[1761337451971,4.16222,3943.0,3942.9,0.002]
[1761337454770,0.95222,3943.0,3942.9,0.002]
[1761337455077,4.16122,3943.0,3942.9,0.002]
[1761337457698,0.4469,3943.4,3943.2,2.53599816]
[1761337459155,0.4469,3943.7,3942.9,2.53820165]
[1761337459359,3.3364,3943.6,3943.1,2.53607015]
[1761337459563,0.4469,3943.5,3943.1,2.53607015]
[1761337460252,0.4469,3943.5,3943.0,0.1272]
[1761337460449,0.4469,3943.5,3943.3,2.53594157]
[1761337461483,0.4469,3943.5,3943.0,2.66332214]
[1761337461684,0.4469,3943.5,3943.3,2.53594157]
[1761337462084,0.4469,3943.5,3943.1,2.53607567]
[1761337462256,0.4469,3943.5,3943.0,0.1272]
[1761337462452,0.4469,3943.5,3943.2,2.53599794]
[1761337462784,0.4479,3943.5,3943.2,2.53599794]
[1761337462978,3.21,3943.4,3943.2,2.53599794]
[1761337463681,3.6569,3943.4,3943.2,2.53599794]
[1761337464904,0.4469,3943.3,3943.0,0.1272]
[1761337465408,0.4469,3943.3,3943.1,2.53606168]
[1761337467298,3.21,3943.4,3943.2,2.53601136]
[1761337467506,3.6569,3943.4,3943.1,2.53605301]
[1761337467912,0.4469,3943.3,3943.1,2.53605301]
[1761337468982,0.4469,3943.3,3943.0,0.1272]
[1761337469289,0.4469,3943.3,3943.1,2.53607091]
[1761337469598,0.4469,3943.3,3943.2,2.53601136]
[1761337469909,0.4469,3943.3,3943.1,2.5360266]
[1761337470300,3.21,3943.4,3943.2,2.53601136]
[1761337470706,3.21,3943.4,3943.0,2.66333395]
[1761337470889,3.6569,3943.4,3943.0,2.66333395]
[1761337471094,3.21,3943.4,3943.0,2.66333395]
[1761337471280,0.4469,3943.3,3943.1,2.53606519]
[1761337471685,0.4469,3943.3,3943.0,2.66331762]
[1761337472193,3.207,3943.2,3943.1,2.53606695]
[1761337472784,0.001,3943.5,3943.1,2.53606695]
[1761337472991,0.4469,3943.2,3943.1,2.53606695]
[1761337475024,0.81239,3943.2,3943.1,2.53606695]
[1761337475217,3.207,3943.4,3943.0,2.66333021]
[1761337475408,3.6539,3943.4,3943.1,2.53607567]
[1761337475612,3.207,3943.4,3943.1,2.53607567]
[1761337475926,0.4469,3943.3,3943.1,2.53607567]
[1761337476119,3.207,3943.4,3943.1,2.53607567]
[1761337476320,3.6539,3943.4,3943.1,2.53607567]
[1761337476514,0.4469,3943.3,3943.1,2.53607567]
[1761337477111,0.4469,3943.3,3943.0,2.66330113]
[1761337478124,0.4469,3943.3,3943.1,2.53606701]
[1761337478355,3.209,3943.2,3943.1,2.53606701]
[1761337479202,3.6563,3943.2,3942.9,2.53818953]
[1761337479402,0.4473,3943.1,3942.9,2.53818953]
[1761337479598,0.4473,3943.1,3943.0,2.53613999]
[1761337480831,3.209,3943.2,3943.1,2.53607567]
[1761337491818,3.6563,3943.2,3943.0,3.21585771]
[1761337492142,0.4473,3943.1,3943.0,3.21585771]
[1761337492543,0.4473,3943.1,3943.0,0.67975137]
[1761337492843,3.36179118,3943.1,3942.9,0.002]
[1761337493043,4.96336801,3943.0,3942.9,0.002]
[1761337495729,0.4473,3943.0,3942.9,0.002]
[1761337503869,0.1272,3943.1,3942.9,0.002]
[1761337504078,3.205,3943.0,3942.9,2.98840431]
[1761337504665,3.205,3943.0,3942.9,2.53820431]
[1761337505074,0.001,3943.2,3943.0,2.53608379]
[1761337505288,3.205,3943.1,3943.0,2.53608379]
[1761337507468,0.001,3943.2,3943.1,2.53607567]
[1761337507667,0.001,3943.2,3943.1,3.64515567]
[1761337508479,0.001,3943.2,3943.1,3.74670854]
[1761337510099,0.001,3943.2,3943.1,6.95370854]
[1761337510274,0.001,3943.2,3943.1,7.29475961]
[1761337511374,0.84658717,3944.0,3943.1,7.29475961]
[1761337511375,0.84658717,3944.0,3943.1,7.21606609]
[1761337511606,5.65477994,3947.0,3944.0,1.5552]
[1761337511816,0.2307,3945.9,3944.5,0.67602361]
[1761337512098,1.5552,3945.7,3944.8,2.53495607]
[1761337512262,4.08961082,3945.7,3944.5,0.76151119]
[1761337512460,0.4365,3945.6,3944.6,2.53511129]
[1761337512765,0.6251056,3945.5,3944.6,2.53511129]
[1761337512990,1.0616056,3945.5,3944.9,2.53485704]
[1761337513172,0.4365,3945.4,3944.9,2.53485704]
[1761337513363,0.4365,3945.4,3944.5,0.76151119]
[1761337513563,0.4365,3945.4,3944.9,2.53490939]
[1761337514004,0.4365,3945.4,3944.9,2.53490728]
[1761337515793,0.4365,3945.4,3945.0,2.53484914]
[1761337516685,0.4365,3945.4,3944.8,2.53492896]
[1761337517196,0.4365,3945.4,3944.9,2.53489771]
[1761337517795,0.4365,3945.4,3944.1,3.3748]
[1761337517988,3.12512165,3945.3,3944.4,2.53518296]
[1761337518192,5.75874279,3945.2,3944.4,2.53518296]
[1761337518392,6.19524279,3945.2,3944.4,2.53518296]
[1761337518605,0.4365,3945.1,3944.4,2.53518296]
[1761337518896,0.4365,3945.1,3944.5,2.53516059]
[1761337519100,0.67856567,3945.0,3944.6,2.53510442]
[1761337519671,0.6672,3944.9,3944.5,2.5351665]
[1761337520207,0.4365,3944.8,3944.5,2.5351665]
[1761337523520,3.221,3944.7,3943.7,0.1508]
[1761337523674,1.5552,3944.4,3943.6,0.1264]
[1761337523999,5.42407994,3944.5,3943.0,0.1272]
[1761337524000,0.1264,3943.7,3943.0,0.1272]
[1761337524306,0.1264,3943.5,3943.3,2.53594509]
[1761337524516,3.222,3943.5,3943.4,2.53588274]
[1761337525188,3.223,3943.6,3943.5,2.53577664]
[1761337527878,0.1264,3943.8,3943.7,2.53568983]
[1761337528077,3.3484,3943.8,3943.7,2.53568983]
[1761337528530,0.1264,3943.8,3943.7,2.53568983]
[1761337528685,0.1264,3944.0,3943.9,2.53549963]
[1761337528885,3.222,3944.0,3943.9,2.5355129]
[1761337530381,3.222,3944.1,3943.9,2.5355129]
[1761337530910,3.222,3944.1,3944.0,2.53549695]
[1761337532122,3.222,3944.1,3943.7,0.1264]
[1761337532337,0.4365,3944.0,3943.7,2.6620487]
[1761337532844,0.2307,3943.9,3943.5,2.53580357]
[1761337533187,0.6672,3943.9,3943.6,2.53570887]
[1761337533702,0.4365,3943.8,3943.6,2.53570887]
[1761337533904,3.222,3943.7,3943.6,2.53570887]
[1761337534699,3.221,3943.7,3943.6,2.53775413]
[1761337535489,3.221,3943.7,3943.6,0.002]
[1761337535809,3.6575,3943.7,3943.6,0.002]
[1761337536817,3.221,3943.7,3943.6,2.53775413]
[1761337537728,3.221,3943.7,3943.6,0.002]
[1761337538028,3.6487,3943.7,3943.6,0.002]
[1761337538207,3.6487,3943.7,3943.6,2.53775413]
[1761337538600,3.6487,3943.7,3943.6,0.002]
[1761337539234,3.6487,3943.7,3943.6,2.53775413]
[1761337539636,3.221,3943.7,3943.6,2.53775413]
[1761337546062,3.221,3943.7,3943.2,0.002]
[1761337546063,13.49840977,3943.7,3943.2,0.002]
[1761337546260,13.49840977,3943.7,3942.9,0.002]
[1761337546261,2.53613999,3943.0,3942.9,0.002]
[1761337546450,5.75513999,3943.0,3942.9,0.002]
[1761337546656,7.96348264,3943.0,3942.9,0.002]